Cogmind - Beta 15 X4 --- EXPLORER MODE // 2025.04.30 @ 21:43:42 Player: Apollyon Result: Destroyed by 9A-Y82(R) with Subdweller Machine Gun Performance ------------- Evolutions (0) 0 Regions Visited (3) 600 Robots Destroyed (20) 100 Value Destroyed (517) 517 Prototype IDs (3) 60 Alien Tech Used (0) 0 Bonus (0) 0 TOTAL SCORE: 1277 Bonus ------- None Cogmind --------- Core Integrity 0/250 Matter 300/300 Energy 98/100 System Corruption 2% Temperature Cool (0) Movement Core (750) Ox14 Location -10/Subcaves Parts ------- > --- POWER (1) -------- (None) > --- PROPULSION (2) --- (None) > --- UTILITY (3) ------ High-capacity Storage Unit Subdweller Optics Signal Interpreter > --- WEAPON (2) ------- Makeshift Axe > --- INVENTORY (20) --- Light Ion Engine Subdweller Power Source Aluminum Leg Medium Storage Unit Structural Scanner Sensor Array Core Shielding EMP Blaster Rocket Launcher Scrap Shield Fragment (49) Scrap Shield Fragment (46) Scrap Shield Fragment (44) Peak State ------------ > --- POWER ------------ Light Angular Momentum Engine > --- PROPULSION ------- Aluminum Leg Aluminum Leg > --- UTILITY ---------- High-capacity Storage Unit Subdweller Optics Signal Interpreter > --- WEAPON ----------- Mining Laser Makeshift Axe > --- INVENTORY -------- Light Ion Engine Subdweller Power Source Aluminum Leg Medium Storage Unit Structural Scanner Sensor Array Core Shielding EMP Blaster Rocket Launcher Scrap Shield Fragment [Rating: 17] Favorites ----------- Power Heavy Ion Engine Engine Heavy Ion Engine Propulsion Aluminum Leg Leg Aluminum Leg Utility Signal Interpreter Device Structural Scanner Storage High-capacity Storage Unit Processor Signal Interpreter Protection Core Shielding Weapon EM Pulse Gun Energy Gun EM Pulse Gun Energy Cannon Particle Cannon Special Weapon Mining Laser Slashing Weapon Makeshift Axe Build | -11 -10 -10 -10 ------- Run | Yrd Mat Min Sub Slots Evolved 1 | . 1 . . Power . | . . . . Propulsion . | . . . . Utility 1 | . 1 . . Weapon . | . . . . Parts Attached 23 | 7 10 2 4 Power 5 | 1 2 . 2 Engine 5 | 1 2 . 2 Core . | . . . . Reactor . | . . . . Propulsion 6 | 2 3 1 . Treads . | . . . . Leg 6 | 2 3 1 . Wheel . | . . . . Hover . | . . . . Flight . | . . . . Utility 7 | 2 4 . 1 Device 3 | 1 1 . 1 Storage 1 | . 1 . . Processor 2 | . 2 . . Hackware . | . . . . Protection 1 | 1 . . . Artifact . | . . . . Weapon 5 | 2 1 1 1 Energy Gun 2 | 2 . . . Energy Cannon 1 | . 1 . . Ballistic Gun . | . . . . Ballistic Cannon . | . . . . Launcher . | . . . . Special Weapon 1 | . . 1 . Impact Weapon . | . . . . Slashing Weapon 1 | . . . 1 Piercing Weapon . | . . . . Special Melee Weapon . | . . . . Unidentified Prototypes 1 | . 1 . . Parts Lost 5 | . . 1 4 Power 1 | . . . 1 Propulsion 2 | . . . 2 Utility . | . . . . Weapon 2 | . . 1 1 Highest Loss Streak 4 | . . 1 4 To Critical Strikes . | . . . . Average Backups 6 | 1 4 7 8 Power 1 | . 1 1 1 Propulsion . | . . . 1 Utility 3 | 1 2 4 4 Weapon 1 | . . 2 2 Tool/Special . | . . . . Unused Backups 4 | . . . 4 Power 1 | . . . 1 Propulsion . | . . . . Utility 1 | . . . 1 Weapon 2 | . . . 2 Tool/Special . | . . . . Average Slot Usage (%) 91 | . 98 87 89 Engine 8 | . 11 6 4 Leg 24 | . 24 25 24 Device 3 | . 7 . 6 Storage 8 | . 3 12 12 Processor 22 | . 20 25 18 Protection 2 | . 5 . . Energy Gun 9 | . 16 6 . Energy Cannon 9 | . 7 12 4 Peak Build Rating 17 | 7 12 13 17 Average Rating 10 | 3 10 10 12 On Entrance 7 | . 7 12 10 Naked Turns . | . . . . Heaviest Build 55 | 11 54 54 55 Greatest Support 20 | 20 20 20 20 Greatest Overweight (x) 3 | 3 2 2 2 Average Overweight (x) 1 | . . 2 2 Largest Inventory Capacity 20 | 5 20 20 20 Average Capacity 15 | 5 8 20 20 Most Carried 12 | 4 6 9 12 Average Carried 6 | 1 4 7 10 Final Capacity 20 | 5 20 20 20 Final Carried 12 | 3 6 9 12 Class Distribution -------------------- 89% | Hacker-Mutant 10% | Hacker-Skirmisher Dominant Class ---------------- Hacker-Mutant | -10/Materials Hacker-Mutant | -10/Mines Hacker-Mutant | -10/Subcaves Resources | -11 -10 -10 -10 ----------- Run | Yrd Mat Min Sub Matter Collected 462 | 210 155 47 50 Remotely . | . . . . Salvage Created 741 | . 356 239 146 Parts 51 | . 27 17 7 Haulers Intercepted 2 | . 2 . . Recyclers Shooed 1 | 1 . . . Parts Field Recycled . | . . . . Retrieved Matter . | . . . . Parts Self-Destructed . | . . . . Prevented . | . . . . Kills | -11 -10 -10 -10 ------- Run | Yrd Mat Min Sub Combat Hostiles Destroyed 17 | . 8 6 3 Melee 2 | . . . 2 Guns 5 | . 4 1 . Cannons 8 | . 2 5 1 AOE 2 | . 2 . . Classes Destroyed 6 | . 4 1 1 Hauler 2 | . 2 . . Watcher 1 | . 1 . . Swarmer 6 | . 4 2 . Grunt 6 | . 4 2 . Sentry 2 | . . 2 . Subdweller 3 | . . . 3 Best Kill Streak 3 | . 3 2 2 Combat Bots Only 3 | . 3 2 2 Max Kills in Single Turn 1 | . 1 1 1 Gunslinging . | . . . . Exploded 1 | . 1 . . Melee 1 | . . . 1 Uniques/NPCs Destroyed . | . . . . Combat | -11 -10 -10 -10 -------- Run | Yrd Mat Min Sub Hostile Shots Fired 107 | . 36 19 52 Missed 28 | . 11 6 11 Hits 79 | . 25 13 41 Projectile 79 | . 25 13 41 Critical Strikes 2 | . . . 2 Damage Taken 843 | . 170 86 587 Core 259 | . 30 . 229 Absorbed by Shields . | . . . . Redirected to Shielding 2 | . 2 . . Ignored by Resistances 521 | . 112 59 350 Core Remaining (%) 100 | 100 . . . Volleys Fired 48 | . 27 14 7 Largest 2 | . 2 2 2 Hottest 168 | . 108 108 168 Shots Fired 82 | . 54 20 8 Gun 44 | . 40 4 . Cannon 36 | . 14 16 6 Launcher . | . . . . Special 2 | . . . 2 Kinetic . | . . . . Thermal 38 | . 14 16 8 Explosive . | . . . . Electromagnetic 44 | . 40 4 . Robot Hit Streak 11 | . 11 10 10 Robot Miss Streak 3 | . 3 1 1 Penetration Max . | . . . . Secondary Targets . | . . . . Shots Hit Robots 73 | . 39 16 18 Core Hits 26 | . 15 7 4 Critical Kills . | . . . . Critical Parts Destroyed . | . . . . Critical Strikes 2 | . 1 . 1 Corrupt 1 | . 1 . . Sever 1 | . . . 1 Melee Attacks 12 | . . . 12 Impact . | . . . . Slashing 12 | . . . 12 Piercing . | . . . . Sneak Attacks . | . . . . Combat Hostiles . | . . . . Follow-up Attacks . | . . . . Damage Inflicted 1476 | 22 593 303 558 Guns 342 | . 286 56 . Cannons 549 | . 202 245 102 Explosions 105 | . 105 . . Melee 432 | . . . 432 Ramming 24 | 22 . 2 . Kinetic . | . . . . Thermal 678 | . 307 245 126 Explosive . | . . . . Electromagnetic 342 | . 286 56 . Impact . | . . . . Slashing 432 | . . . 432 Piercing . | . . . . Highest Corruption 2 | . 2 2 2 Average Corruption 1 | . 1 2 2 Corruption Purged . | . . . . Corruption Blocked . | . . . . Effects 36 | . 9 24 3 Message Errors 8 | . 2 5 1 Matter Fused 6 | . 1 5 . Heat Flow Errors 3 | . . 3 . Energy Discharges 4 | . 3 1 . Parts Fused 3 | . 1 2 . Data Loss (minor) 5 | . . 4 1 Data Loss (major) 3 | . 1 2 . Misfires 2 | . . 2 . Alerts 2 | . 1 . 1 Overload Shots . | . . . . Overflow Damage . | . . . . Projectiles . | . . . . Explosions . | . . . . Melee . | . . . . Knockbacks . | . . . . Impact . | . . . . Kinetic . | . . . . Secondary . | . . . . Self-Inflicted Damage 23 | . 23 . . Shots 1 | . 1 . . Rammed . | . . . . Targets Rammed 5 | 4 . 1 . Kicked 5 | 4 . 1 . Crushed . | . . . . Highest Temperature 219 | . 204 219 . Average Temperature 74 | . 64 88 . Received Heat Transfer 243 | . 84 33 126 Siege Activations . | . . . . Martial Activations . | . . . . Shielding Activations . | . . . . Robots Disrupted . | . . . . Combat Hostiles . | . . . . Robots Corrupted . | . . . . Combat Hostiles . | . . . . Parts Fried 1 | . 1 . . Impact Corruptions . | . . . . Robots Melted . | . . . . Combat Hostiles . | . . . . Parts Melted 4 | . . 2 2 Heat Transferred 1199 | . 520 444 235 Parts Sabotaged . | . . . . Parts Stolen . | . . . . Parts Stripped . | . . . . Power Chain Reactions 2 | . 2 . . Alert | -11 -10 -10 -10 ------- Run | Yrd Mat Min Sub Maximum Alert Level . | . . . . Low Security (%) 100 | 100 100 100 . Level 1 . | . . . . Level 2 . | . . . . Level 3 . | . . . . Level 4 . | . . . . Level 5 . | . . . . High Security . | . . . . Max Security . | . . . . Peak Influence 64 | . 64 40 . Initial . | . . . . Average 2 | . 5 1 . Influence Increases 381 | . 241 140 . Destroy 0b10 Robot/C 280 | . 160 120 . Destroy 0b10 Robot/NC 15 | . 15 . . Destroy Leader 56 | . 36 20 . Successful Hack 18 | . 18 . . Disable Machine 4 | . 4 . . Destroy Structure 8 | . 8 . . Influence Decreases 381 | . 241 140 . Time Decay 381 | . 241 140 . Squads Dispatched 1 | . 1 . . Investigation 1 | . 1 . . Extermination . | . . . . Reinforcement . | . . . . Assault . | . . . . Garrison . | . . . . Intercept . | . . . . Searches Triggered . | . . . . Construction Impeded . | . . . . Haulers Reinforced . | . . . . Active Scanning Responses . | . . . . Cargo Convoy Interrupts . | . . . . Stealth | -11 -10 -10 -10 --------- Run | Yrd Mat Min Sub Distress Signals 1 | . 1 . . Communications Jammed . | . . . . Distress Signals . | . . . . Times Spotted 19 | . 8 6 5 Peak Tracking Total 3 | . 3 2 3 Tactical Retreats . | . . . . Traps | -11 -10 -10 -10 ------- Run | Yrd Mat Min Sub Traps Triggered 3 | . 3 . . Indirectly . | . . . . Trap Hack Attempts . | . . . . Triggered . | . . . . Disarmed . | . . . . Reprogrammed . | . . . . Reused . | . . . . Traps Extracted . | . . . . Installed . | . . . . Triggered . | . . . . Machines | -11 -10 -10 -10 ---------- Run | Yrd Mat Min Sub Machines Disabled 1 | . 1 . . Max in Single Turn 1 | . 1 . . Machines Repaired . | . . . . Machines Dismantled . | . . . . Machines Sabotaged . | . . . . Overloaded Fab Kills . | . . . . Hacking | -11 -10 -10 -10 --------- Run | Yrd Mat Min Sub Machines Accessed 6 | . 5 1 . Terminals 4 | . 3 1 . Fabricators . | . . . . Repair Stations 1 | . 1 . . Recycling Units 1 | . 1 . . Scanalyzers . | . . . . Garrison Access . | . . . . Total Hacks 13 | . 12 1 . Successful 10 | . 9 1 . Failed 3 | . 3 . . Catastrophic . | . . . . Database Lockouts . | . . . . Manual 2 | . 2 . . Terminals 10 | . 9 1 . Fabricators . | . . . . Repair Stations 1 | . 1 . . Recycling Units 2 | . 2 . . Scanalyzers . | . . . . Garrison Access . | . . . . Terminal Hacks 7 | . 6 1 . Record 2 | . 1 1 . Prototype ID Bank 1 | . 1 . . Alert Level 1 | . 1 . . Locate Traps 1 | . 1 . . Assault Status 1 | . 1 . . Zone Layout 1 | . 1 . . Fabricator Hacks . | . . . . Repair Station Hacks 1 | . 1 . . Scan Component 1 | . 1 . . Recycling Unit Hacks 2 | . 2 . . Report Inventory 1 | . 1 . . Retrieve Components 1 | . 1 . . Scanalyzer . | . . . . Garrison Access Hacks . | . . . . Unauthorized Hacks . | . . . . Terminals . | . . . . Fabricators . | . . . . Repair Stations . | . . . . Recycling Units . | . . . . Scanalyzers . | . . . . Garrison Access . | . . . . Data Cores Recovered . | . . . . Used . | . . . . Hacking Detections 3 | . 3 . . Full Trace Events 1 | . 1 . . Feedback Events . | . . . . Feedback Blocked . | . . . . Robot Schematics Acquired . | . . . . Robots Built . | . . . . Authchips . | . . . . Time . | . . . . Total Robot Build Rating . | . . . . Part Schematics Acquired . | . . . . Parts Built . | . . . . Authchips . | . . . . Time . | . . . . Total Part Build Rating . | . . . . Parts Repaired . | . . . . Time . | . . . . Parts Recycled . | . . . . Recycled Matter . | . . . . Retrieved Matter . | . . . . Retrieved Components 10 | . 10 . . Parts Scanalyzed . | . . . . Part Schematics Acquired . | . . . . Parts Damaged . | . . . . Bothacking | -11 -10 -10 -10 ------------ Run | Yrd Mat Min Sub Used RIF Installer . | . . . . Robots Hacked . | . . . . Non-combat . | . . . . Combat . | . . . . Robot Hacks Applied . | . . . . Relay Couplers Released . | . . . . Fabnet Peak Effective % . | . . . . Robots Rewired . | . . . . Allies Hacked . | . . . . Hacks Repelled . | . . . . Allies | -11 -10 -10 -10 -------- Run | Yrd Mat Min Sub Total Allies 1 | . . 1 . Largest Group 1 | . . 1 1 Highest-Rated Group 31 | . . 31 31 Highest-Rated Ally 31 | . . 31 31 Total Orders . | . . . . Ally Attacks 5 | . . . 5 Total Damage 63 | . . . 63 Kills . | . . . . Allies Corrupted . | . . . . Allies Melted . | . . . . Intel | -11 -10 -10 -10 ------- Run | Yrd Mat Min Sub Active Infowar (turns) 3823 | 88 1425 2112 198 Optics 3287 | . 977 2112 198 Sensors 396 | . 396 . . Structural 536 | 88 448 . . Robot Analysis Total . | . . . . Derelict Logs Recovered 1 | . . 1 . Drone Launches . | . . . . Drone Recoveries . | . . . . Exploration | -11 -10 -10 -10 ------------- Run | Yrd Mat Min Sub Turns Passed 3870 | 135 1425 2112 198 Spaces Moved 1886 | 121 918 791 56 Core 83 | 83 . . . Treads . | . . . . Legs 1803 | 38 918 791 56 Wheels . | . . . . Hover . | . . . . Flight . | . . . . Fastest Speed 50 | 50 120 260 260 Average Speed 191 | 96 140 260 260 Slowest Speed 260 | 200 260 260 260 Overloaded Moves . | . . . . Propulsion Burnouts . | . . . . Robots Hopped . | . . . . Potential Cave-ins . | . . . . Cave-ins Triggered . | . . . . Exploration Rate (%) 50 | 4 94 99 4 Regions Visited 3 Branch Regions 2 Pre-discovered Areas . | . . . . Known Exits Taken 3 | 1 1 1 . Unknown Exits Taken . | . . . . Scrap Searched 1 | . . 1 . Spaces Dug . | . . . . Terrain Destroyed 7 | . 7 . . Melee . | . . . . Projectile . | . . . . AOE 7 | . 7 . . Terrain Rammed . | . . . . Walls Destroyed . | . . . . Machines Disabled . | . . . . Actions | -11 -10 -10 -10 --------- Run | Yrd Mat Min Sub Total 2044 | 135 997 828 84 Wait 48 | . 31 17 . Move 1883 | 120 917 790 56 Hop . | . . . . Pick Up 12 | 4 3 2 3 Fast Attach 20 | 6 10 2 2 Attach 3 | 1 1 . 1 Detach 5 | . 1 2 2 Swap 1 | . . . 1 Drop 7 | . 7 . . Fire 48 | . 27 14 7 Melee 12 | . . . 12 Ram . | . . . . Kick 5 | 4 . 1 . Crush . | . . . . Escape Stasis . | . . . . Rewire . | . . . . Trap . | . . . . Miscellaneous . | . . . . Route ------- -11/Scrapyard -10/Materials (discovered 6 exits: *Mat x3 / *Min x2 / *Sub) -10/Mines (discovered 4 exits: *Mat x2 / *Exi / *Sub) -10/Subcaves History --------- Turn | Location | Event 6 | -11/Scrapyard | Identified exit to Materials 6 | -11/Scrapyard | Discovered exit to Materials (range 15) 136 | -11/Scrapyard | Entered Materials 136 | -10/Materials | Evolved 1 slot: Utility x1 137 | -10/Materials | Met a group of wandering Federalists 272 | -10/Materials | Identified exit to Mines 272 | -10/Materials | Discovered exit to Mines (range 7) 310 | -10/Materials | Build established: Hacker-Mutant 655 | -10/Materials | Discovered exit to Mines (range 7) 714 | -10/Materials | Identified exit to Materials 714 | -10/Materials | Discovered exit to Materials (range 16) 848 | -10/Materials | Discovered exit to Materials (range 4) 1079 | -10/Materials | Identified exit to Subcaves 1079 | -10/Materials | Discovered exit to Subcaves (range 9) 1104 | -10/Materials | Build established: Hacker-Skirmisher 1178 | -10/Materials | Discovered exit to Materials (range 15) 1501 | -10/Materials | Build established: Hacker-Mutant 1561 | -10/Materials | Entered Mines 1619 | -10/Mines | Deemed a non-threat by the Exiles lab entrance 1619 | -10/Mines | Identified exit to Exiles 1619 | -10/Mines | Discovered exit to Exiles (range 5) 2071 | -10/Mines | A weapon hastily lodged in a ceiling crevice suddenly fell to the ground 2160 | -10/Mines | Discovered exit to Materials (range 5) 2482 | -10/Mines | Discovered exit to Materials (range 9) 2489 | -10/Mines | Received a Rocket Launcher from a helpful Derelict 3404 | -10/Mines | Learned Materials emergency access door positions 3623 | -10/Mines | Received a Mining Laser from a helpful Derelict 3663 | -10/Mines | Discovered exit to Subcaves (range 4) 3673 | -10/Mines | Entered Subcaves 3673 | -10/Subcaves | Accompanied by 1 ally 3833 | -10/Subcaves | A Subdweller sparked back to life 3833 | -10/Subcaves | A Subdweller sparked back to life 3833 | -10/Subcaves | A Subdweller sparked back to life 3850 | -10/Subcaves | Core integrity fell below 50% 3868 | -10/Subcaves | Core integrity fell below 20% 3871 | -10/Subcaves | Destroyed by 9A-Y82(R) with Subdweller Machine Gun Last Messages --------------- 03770_ Subatomizers dissect the Lgt. Angular Momentum Engine. 03780_ Subatomizers dissect the Sub. Monowheel. 03787_ Acquired Lgt. Angular Momentum Engine. 03794_ Acquired 10 matter. 03796_ MH0TVGCQWH6RRKOJA&GAQE5H8J 03805_ Subatomizers dissect the Sub. Monowheel. 03812_ Acquired Scrap Shield Fragment. 03816_ Subatomizers dissect the Sub. Machine Gun. 03819_ Acquired Scrap Shield Fragment. 03833_ 7K-1S2(R) creaks and sparks as it begins to move. 03833_ 9A-Y82(R) creaks and sparks as it begins to move. 03833_ 5M-UIY(R) creaks and sparks as it begins to move. 03838_ Mining Laser destroyed. 03849_ Lgt. Angular Momentum Engine destroyed. 03853_ 9A-Y82(R) affixes Scrap Shield Fragment to Scrap Shield. 03854_ 5M-UIY(R) destroyed. 03856_ 7K-1S2(R) Sub. Power Source severed. 03863_ Aluminum Leg destroyed. 03868_ Destroyed Scrap Shield. 03870_ Aluminum Leg destroyed. Map ----- +----------------------------------------------------+ | | | | | | | | | | | | | | | | | | | | | ?????????????????????????????????????????????????? | | ?????????????????????????????????????????????????? | | ?????????????????????????????????????????????????? | | ?????????????????????????????????????????????????? | | ?????????????????????????????????????????????????? | | ?????????????????????????????????????????????????? | | ?????????????????????????????????????????????????? | | ?????????????????????????????????????????????????? | | ?????????????????????????????????????????????????? | | ?????????????????????????????????????????????????? | | ?????????????????????????????????????????????????? | | ?????????????????????????????????????????????????? | | ?????????????????????????????????????????????????? | | ?????????????????????????????????????????????????? | | ???????????????????????###########???????????????? | | ???????????????????????#%@ <# ##?????####?????? | | ???????????????????????#R! < #????## #?????? | | ???????????????????????#* ###### ##????? | | ???????????????????????#R ## ##???? | | ???????????????????????# < # ## # ###?? | | ???????????????????????##<;##% ## ##? | | ?????????????????????????### % %### #? | | ???????????????????????????##[= ##?## ##? | | ??????????????????????????# ##???### ##?? | | ?????????????????????????# #??????## ##??? | | ?????????????????????????## #???????# ###???? | | ??????????????????????????# ???????# #????? | | ?????????????????????????# ??????# # #???? | | ?????????????????????????# ?????## #??? | | ?????????????????????????## ?????## ##??? | | ??????????????????????????## ?????? ????? | | ???????????????????????????## ?????? #???? | | ????????????????????????????# ????? #???? | | ????????????????????????????# ## ##???? ???? | | ????????????????????????????# #?##????? ???? | | ????????????????????????????# ???????? ??? | | ????????????????????????????# ???????? ???? | | ????????????????????????????# ## ???????? ???? | | ????????????????????????????## ?# ?????????????? | | ?????????????????????????????? ??#?????????????? | +----------------------------------------------------+ Best States ------------- Heat Dissipation 25 Energy Generation 18 Energy Capacity 280 Matter Stores 300 Matter Capacity 300 Sight Range 21 Robot Scan Range 14 Terrain Scan Density 10 Resistance: KI 35 Resistance: TH 35 Resistance: EX 35 Resistance: EM 35 Resistance: I 35 Resistance: S 35 Resistance: P 35 Core Shielding 20 Evasion (%) 55 Offensive Hacking 20 Item Schematics ----------------- None Robot Schematics ------------------ None Fabricated ------------ Nothing Repaired ---------- Nothing Alien Tech Used ----------------- None Achievements -------------- None Challenges ------------ None Game ------ Seed SeismicCoreGuard Manual? 0 Play Time 00:30:15 Cumulative 11.1 hours Start 2025.04.30 @ 21:15:25 End 2025.04.30 @ 21:43:42 Sessions 1 Manual Loads 0 Difficulty Explorer Special Mode None Game No. 17 Rogue 10 Adventurer 0 Explorer 7 Win Type - Total 0 Types 0/0/0/0/0/0/0/0/0/0 Lore% 9 Gallery% 11 Achievement% 14 Wizard Run 0 Options --------- Layout 0 ASCII 0 Keyboard 1 Movement Vi Keybinds 0 Fullscreen 1 Font 18/SmallcapsGlow Map View 76x50 Zoom Use 0% Tactical HUD 1 Map Filters NONE Filters NONE Steam 1 RUN: b39cd7dc-daa8-4122-a77d-ddbda2a7c574